bitfinex/quotes_ETHUSD_20220311
["timestamp","ask_amount","ask_price","bid_price","bid_amount"]
[1647040689349,0.31517372,2564.6,2564.5,1.27082901]
[1647040689548,0.31517372,2564.6,2564.2,1.27078872]
[1647040689748,3.81517372,2564.6,2564.3,1.27093255]
[1647040689949,0.31517372,2564.5,2564.1,1.27093255]
[1647040690148,0.31517372,2564.5,2564.0,0.0669475]
[1647040690149,0.31517372,2564.4,2564.2,1.27093255]
[1647040690348,5.45028,2564.6,2564.3,1.27093255]
[1647040690549,0.31547977,2564.5,2564.4,1.27093255]
[1647040690749,0.31547977,2564.5,2564.0,0.0669475]
[1647040690750,3.81547977,2564.5,2564.1,1.27093255]
[1647040690949,0.3155078,2564.4,2564.2,1.27093255]
[1647040691201,0.3155078,2564.4,2564.3,1.27093255]
[1647040691590,0.3155078,2564.4,2564.1,1.27093255]
[1647040691793,0.3155078,2564.4,2564.2,1.27093255]
[1647040691992,1.95017,2564.3,2564.0,0.0669475]
[1647040692796,0.24791815,2564.3,2564.0,0.0669475]
[1647040693096,0.24791815,2564.3,2564.0,0.07129243]
[1647040693296,0.29852947,2564.3,2564.0,0.07129243]
[1647040693896,0.29852947,2564.3,2564.2,0.84489891]
[1647040694497,0.9751,2564.5,2564.2,0.84489891]
[1647040694695,0.9751,2564.5,2564.2,1.81972111]
[1647040695153,0.9751,2564.5,2564.2,2.79460111]
[1647040695353,0.9751,2564.5,2564.2,0.84489891]
[1647040695553,0.9751,2564.5,2564.2,0.00434482]
[1647040695753,0.05179182,2564.4,2564.2,0.00434482]
[1647040696555,1.95021,2564.3,2564.0,0.0669475]
[1647040696861,1.95021,2564.3,2564.2,0.00455074]
[1647040697661,1.95021,2564.3,2564.0,1.08132743]
[1647040697862,1.95021,2564.3,2564.1,0.00440413]
[1647040698890,1.95021,2564.3,2564.0,1.08132743]
[1647040699190,1.95021,2564.3,2564.1,0.00440415]
[1647040700191,1.95021,2564.3,2564.0,1.08132743]
[1647040700391,1.95021,2564.3,2564.1,0.00440415]
[1647040701294,1.95021,2564.3,2564.0,1.08132743]
[1647040701692,1.95021,2564.3,2564.1,0.00408029]
[1647040702543,1.95021,2564.3,2564.1,0.71549753]
[1647040703443,1.95021,2564.3,2564.2,0.71141724]
[1647040703444,0.97497,2564.3,2564.2,0.71141724]
[1647040703843,0.97497,2564.3,2564.1,1.68634254]
[1647040704045,0.97497,2564.3,2564.1,1.69042283]
[1647040704546,0.97497,2564.3,2564.1,2.66537283]
[1647040704943,0.97497,2564.3,2564.1,3.63624254]
[1647040705144,0.97497,2564.3,2564.1,3.64034675]
[1647040705944,0.97497,2564.3,2564.2,0.71141724]
[1647040706390,1.94994,2564.6,2564.2,0.71141724]
[1647040706391,0.97488,2564.5,2564.3,0.97487]
[1647040708796,0.97488,2564.5,2564.3,0.97897906]
[1647040709798,0.97488,2564.5,2564.3,0.97487]
[1647040710042,0.97488,2564.5,2564.3,0.97897906]
[1647040710842,0.97488,2564.5,2564.3,0.97487]
[1647040711247,0.97488,2564.5,2564.3,0.97897906]
[1647040712045,1.03790522,2564.7,2564.4,1.24017514]
[1647040712649,0.34776636,2564.6,2564.4,1.24017514]
[1647040712850,1.03790522,2564.7,2564.6,0.54239615]
[1647040713050,1.38569979,2564.7,2564.6,1.78257129]
[1647040713711,1.3845026,2564.7,2564.6,1.78257129]
[1647040714300,1.32146738,2564.7,2564.6,1.78257129]
[1647040716903,1.32146738,2564.7,2564.6,1.77681129]
[1647040717551,4.82146738,2564.7,2564.6,1.77681129]
[1647040717952,2.46456738,2564.7,2564.6,1.77681129]
[1647040718652,5.96456738,2564.7,2564.6,1.77681129]
[1647040718851,5.96456738,2564.7,2564.6,0.53663615]
[1647040719451,6.15936738,2564.7,2564.6,0.53663615]
[1647040719851,6.86743371,2564.7,2564.6,0.53663615]
[1647040720552,6.15936738,2564.7,2564.6,0.53663615]
[1647040720956,5.96456738,2564.7,2564.6,0.53663615]
[1647040721202,5.96456738,2564.7,2564.6,1.77704334]
[1647040721403,5.96456738,2564.7,2564.6,0.53663615]
[1647040723008,6.26456738,2564.7,2564.6,0.53663615]
[1647040723211,6.96456738,2564.7,2564.6,0.53663615]
[1647040723411,5.96456738,2564.7,2564.6,0.53663615]
[1647040724011,5.96456738,2564.7,2564.6,1.7772762]
[1647040724213,5.96456738,2564.7,2564.6,0.53663615]
[1647040732547,5.96456738,2564.7,2564.6,0.53743615]
[1647040732749,6.24916738,2564.7,2564.6,0.53743615]
[1647040733150,6.95723371,2564.7,2564.6,0.53743615]
[1647040733550,6.24916738,2564.7,2564.6,0.53743615]
[1647040734152,5.96456738,2564.7,2564.6,0.53743615]
[1647040734752,6.67263371,2564.7,2564.6,0.53743615]
[1647040735352,5.96456738,2564.7,2564.6,0.53743615]
[1647040735552,6.67263371,2564.7,2564.6,0.53743615]
[1647040736310,5.96456738,2564.7,2564.6,0.53743615]
[1647040736712,6.67263371,2564.7,2564.6,0.53743615]
[1647040738719,5.96456738,2564.7,2564.6,0.53743615]
[1647040738917,5.96456738,2564.7,2564.6,0.53663615]
[1647040739317,5.96456738,2564.7,2564.6,0.53568291]
[1647040742247,6.67452758,2564.7,2564.6,0.53568291]
[1647040745598,6.67452758,2564.7,2564.5,0.00420515]
[1647040745599,2.47522,2564.6,2564.5,0.00420515]
[1647040745798,2.47522,2564.6,2564.0,0.26306521]
[1647040745799,6.32301457,2564.6,2564.0,0.26306521]
[1647040746001,2.03264259,2564.5,2564.0,0.2617475]
[1647040746301,0.34779457,2564.4,2564.0,0.2617475]
[1647040746598,0.34779457,2564.4,2564.1,1.22933151]
[1647040746803,1.05739259,2564.4,2564.0,0.2617475]
[1647040747005,0.86893324,2564.1,2564.0,0.2617475]
[1647040747207,1.21672781,2564.1,2564.0,0.2617475]
[1647040748258,2.11252781,2564.1,2564.0,0.2617475]
[1647040750359,5.61252781,2564.1,2564.0,0.2617475]
[1647040750759,2.11252781,2564.1,2564.0,0.0669475]
[1647040751402,6.32212583,2564.1,2564.0,0.0669475]
[1647040751799,2.82212583,2564.1,2564.0,0.0669475]
[1647040752000,1.95319259,2564.1,2564.0,0.0669475]
[1647040752201,0.34779457,2564.1,2564.0,0.0669475]
[1647040753103,0.34779457,2564.1,2563.9,1.52519529]
[1647040754503,0.39856215,2564.1,2563.9,1.52519529]
[1647040754704,0.34779457,2564.0,2563.9,1.52519529]
[1647040756851,3.84779457,2564.0,2563.9,1.52519529]
[1647040758056,0.34779457,2564.0,2563.9,1.52519529]
[1647040758894,3.84779457,2564.0,2563.9,1.52519529]
[1647040759498,0.34779457,2564.0,2563.9,1.52519529]
[1647040761101,3.84779457,2564.0,2563.9,1.59588196]
[1647040761295,0.34779457,2564.0,2563.9,1.59588196]
[1647040761696,3.84779457,2564.0,2563.9,1.59588196]
[1647040761895,0.34779457,2564.0,2563.9,1.59588196]
[1647040762753,0.34779457,2564.0,2563.9,2.84787455]
[1647040764853,0.34779457,2564.0,2563.9,2.79787455]
[1647040765656,0.97525,2564.2,2563.9,2.85835748]
[1647040765856,0.97496,2564.3,2564.0,1.31911548]
[1647040766056,0.33353468,2564.2,2564.1,1.3227411]
[1647040766506,0.33353468,2564.2,2564.1,1.35940015]
[1647040766906,0.33353468,2564.2,2564.1,2.39796464]
[1647040770451,0.33353468,2564.2,2564.1,2.89796464]
[1647040771149,0.33353468,2564.2,2564.1,2.39796464]
[1647040773358,0.33365825,2564.4,2564.1,2.62721613]
[1647040773558,0.33365825,2564.4,2564.2,2.32612828]
[1647040773802,0.00393762,2564.9,2564.4,0.60337262]
[1647040774003,0.33758961,2564.9,2564.5,1.2886454]
[1647040774200,0.33758961,2564.9,2564.6,1.28864384]
[1647040774499,0.33758961,2564.9,2564.6,0.03665125]
[1647040774500,1.31241961,2564.9,2564.6,0.03665125]
[1647040774700,0.33365199,2564.8,2564.6,0.03665125]
[1647040778251,0.33365199,2564.8,2564.6,0.61730395]
[1647040779552,0.33365199,2564.8,2564.6,0.03665125]
[1647040779751,0.38515914,2564.8,2564.6,0.03665125]
[1647040779953,3.83365199,2564.7,2564.6,0.03665125]
[1647040780553,4.54262019,2564.7,2564.6,0.03665125]
[1647040780753,3.83365199,2564.7,2564.6,0.03665125]
[1647040781055,0.33365199,2564.7,2564.6,0.03665125]
[1647040781302,4.54262019,2564.7,2564.6,0.03665125]
[1647040787056,3.83365199,2564.7,2564.6,0.03665125]
[1647040787257,4.54268669,2564.7,2564.6,0.03665125]
[1647040787466,1.04268669,2564.7,2564.6,0.03665125]
[1647040787863,0.7090347,2564.7,2564.6,0.03665125]
[1647040788914,0.70905047,2564.7,2564.6,0.03665125]
[1647040789315,0.33365199,2564.7,2564.6,0.03665125]
[1647040789713,1.04270246,2564.8,2564.6,0.03665125]
[1647040789915,0.33365199,2564.7,2564.6,0.03665125]
[1647040790614,1.04270246,2564.8,2564.6,0.03665125]
[1647040790814,0.33365199,2564.7,2564.6,0.03665125]
[1647040791223,1.04270246,2564.8,2564.6,0.03665125]
[1647040791418,1.04270246,2564.7,2564.6,0.03665125]
[1647040791616,0.33365199,2564.7,2564.6,0.03665125]
[1647040792016,1.04270246,2564.8,2564.6,0.03665125]
[1647040792217,0.33365199,2564.7,2564.6,0.03665125]
[1647040792454,1.04270246,2564.8,2564.6,0.03665125]
[1647040793759,1.04270246,2564.8,2564.4,0.52612659]
[1647040793959,1.04270246,2564.8,2564.5,0.00394801]
[1647040794160,1.94999,2564.7,2564.5,0.00394801]
[1647040794362,0.33365199,2564.6,2564.5,0.00394801]
[1647040794560,0.31247409,2564.6,2564.5,0.00394801]
[1647040794961,0.31247409,2564.6,2564.4,0.52612659]
[1647040795162,2.26246409,2564.6,2564.4,0.52612659]
[1647040795464,1.94999,2564.6,2564.4,0.53007449]
[1647040795764,0.70905047,2564.8,2564.4,0.53007449]
[1647040796200,0.70905047,2564.8,2564.4,0.52612659]
[1647040796401,0.70905047,2564.8,2564.5,0.0039479]
[1647040797099,1.94999,2564.6,2564.5,0.0039479]
[1647040797506,1.94999,2564.6,2564.4,0.52612659]
[1647040797704,1.94999,2564.6,2564.5,0.00394793]
[1647040798704,1.94999,2564.6,2564.4,0.52612659]
[1647040798906,1.94999,2564.6,2564.4,0.53007447]
[1647040799505,2.65904047,2564.6,2564.4,0.53007447]
[1647040799705,2.65904047,2564.6,2564.4,0.52612659]
[1647040800148,2.65904047,2564.6,2564.4,0.53007449]
[1647040800951,2.65904047,2564.6,2564.4,0.52612659]
[1647040801149,2.65904047,2564.6,2564.4,0.5300747]
[1647040801351,1.94999,2564.6,2564.4,0.5300747]
[1647040802348,1.94999,2564.6,2564.4,0.52612659]
[1647040802752,1.94999,2564.6,2564.4,0.5300747]
[1647040803153,2.65904047,2564.6,2564.4,0.5300747]
[1647040803353,2.65904047,2564.6,2564.4,0.52612659]
[1647040803555,2.65904047,2564.6,2564.4,0.5300747]
[1647040804600,2.65904047,2564.6,2564.4,0.52612659]
[1647040804801,2.65904047,2564.6,2564.4,0.53007467]
[1647040805802,0.70905047,2564.5,2564.4,0.52612659]
[1647040806003,2.65904047,2564.6,2564.4,0.53007467]
[1647040806703,1.94999,2564.6,2564.4,0.53007467]
[1647040806903,1.68403047,2564.7,2564.4,0.53007467]
[1647040807101,0.97498,2564.7,2564.4,0.52612659]
[1647040808456,1.68403047,2564.7,2564.4,0.53007768]
[1647040808656,0.97498,2564.7,2564.4,0.53007768]
[1647040809361,0.97498,2564.7,2564.4,0.52612659]
[1647040809863,0.97498,2564.7,2564.4,0.53007768]
[1647040810659,0.97498,2564.7,2564.4,0.52612659]
[1647040810857,0.97498,2564.7,2564.4,0.53007768]
[1647040811900,0.97498,2564.7,2564.4,0.52612659]
[1647040812098,0.97498,2564.7,2564.4,0.53006483]
[1647040812298,1.95374746,2564.9,2564.4,2.47980483]
[1647040812299,0.71298793,2564.9,2564.4,2.47980483]
[1647040812502,0.00393746,2564.9,2564.4,2.47980483]
[1647040812902,1.275642,2565.1,2564.4,2.47586659]
[1647040813303,0.00393757,2564.9,2564.5,0.0039383]
[1647040813503,0.00393757,2564.9,2564.5,1.9534583]
[1647040813702,0.00393757,2564.9,2564.5,2.9281907]
[1647040814104,0.00393757,2564.9,2564.5,2.9242524]
[1647040814303,1.98469247,2565.1,2564.5,2.9242524]
[1647040814501,1.98469247,2565.1,2564.6,1.25575193]
[1647040814502,0.00393762,2564.9,2564.6,1.25575193]
[1647040814702,0.97876762,2564.9,2564.6,1.25575193]
[1647040814948,0.3330256,2564.8,2564.6,1.25575193]
[1647040817755,0.3330256,2564.8,2564.5,1.9495724]
[1647040817956,0.3330256,2564.8,2564.6,1.25512923]
[1647040818357,0.3330256,2564.8,2564.7,1.25512923]
[1647040818555,0.3330256,2564.8,2564.5,1.25900711]
[1647040818999,0.3330256,2564.8,2564.5,1.25506731]
[1647040819205,0.3330256,2564.8,2564.5,1.25900696]
[1647040820100,0.3330256,2564.8,2564.5,1.25506731]
[1647040820502,0.3330256,2564.8,2564.5,1.25900686]
[1647040821308,0.3330256,2564.8,2564.5,1.25506731]
[1647040821708,0.3330256,2564.8,2564.5,1.25900686]
[1647040822109,0.3330256,2564.8,2564.5,2.23385686]
[1647040822309,0.3330256,2564.8,2564.6,1.25506731]
[1647040823358,0.3330256,2564.8,2564.6,2.22988731]
[1647040823558,0.3330256,2564.8,2564.7,1.25450051]
[1647040823958,3.8330256,2564.8,2564.7,1.25450051]
[1647040824160,0.85198716,2564.5,2564.4,0.52612659]
[1647040824960,1.18501276,2564.5,2564.4,1.78061892]
[1647040831755,0.3330256,2564.5,2564.4,1.78061892]
[1647040841308,0.3979838,2564.5,2564.4,1.78061892]
[1647040844214,0.3979838,2564.5,2564.4,0.52612659]
[1647040844415,0.3979838,2564.5,2564.4,1.77832608]
[1647040844613,0.3979838,2564.5,2564.4,0.5247571]
[1647040844813,0.3979838,2564.5,2564.4,1.77832224]
[1647040845050,0.3979838,2564.5,2564.4,0.5247571]
[1647040845252,0.3979838,2564.5,2564.4,1.77832836]
[1647040845554,0.3979838,2564.5,2564.4,0.5247571]
[1647040845751,0.3979838,2564.5,2564.4,1.77832846]
[1647040845952,0.3979838,2564.5,2564.4,0.5247571]
[1647040846153,0.3979838,2564.5,2564.4,1.77834513]
[1647040846352,0.3979838,2564.5,2564.4,0.5247571]
[1647040846555,0.3979838,2564.5,2564.4,1.77834578]
[1647040846752,0.3979838,2564.5,2564.4,0.5247571]
[1647040846953,0.3979838,2564.5,2564.4,1.77832757]
[1647040847155,0.3979838,2564.5,2564.4,0.5247571]
[1647040847559,0.3979838,2564.5,2564.4,1.77830135]
[1647040847758,0.3979838,2564.5,2564.3,0.0194654]
[1647040847958,0.3949493,2564.4,2564.3,0.0194654]
[1647040848162,0.3949493,2564.4,2564.3,1.27711794]
[1647040848360,0.3949493,2564.4,2564.3,1.27710703]
[1647040849123,0.3949493,2564.4,2564.3,1.27316299]
[1647040849425,0.3949493,2564.4,2564.3,1.27317872]
[1647040851224,0.39725045,2564.4,2564.3,1.27317872]
[1647040851426,0.0619237,2564.4,2564.3,1.27317872]
[1647040851623,0.39725147,2564.4,2564.3,1.27317872]
[1647040851824,0.0619237,2564.4,2564.3,1.27317872]
[1647040852026,0.39726207,2564.4,2564.3,1.27317872]
[1647040852451,0.0619237,2564.4,2564.3,1.27317872]
[1647040852658,0.39726322,2564.4,2564.3,1.27317872]
[1647040852858,0.0619237,2564.4,2564.3,1.27317872]
[1647040853067,0.39729742,2564.4,2564.3,1.27317872]
[1647040853260,0.0619237,2564.4,2564.3,1.27317872]
[1647040853461,0.39729817,2564.4,2564.3,1.27317872]
[1647040853663,0.0619237,2564.4,2564.3,1.27317872]
[1647040853859,0.39729644,2564.4,2564.3,1.27317872]
[1647040854058,0.0619237,2564.4,2564.3,1.27317872]
[1647040854862,0.39729885,2564.4,2564.3,1.27317872]
[1647040855060,0.39729708,2564.4,2564.3,1.27317872]
[1647040855259,0.39732404,2564.4,2564.3,1.27317872]
[1647040855663,0.0619237,2564.4,2564.3,1.27317872]
[1647040855862,0.39736382,2564.4,2564.3,1.27317872]
[1647040856064,0.0619237,2564.4,2564.3,1.27317872]
[1647040856304,0.39736478,2564.4,2564.3,1.27317872]
[1647040864505,0.39736478,2564.4,2564.3,0.0194654]
[1647040865105,0.39736478,2564.4,2564.3,1.27399485]
[1647040865305,0.39736478,2564.4,2564.3,0.0194654]
[1647040865505,0.39736478,2564.4,2564.3,1.27398132]
[1647040865805,0.39736478,2564.4,2564.3,0.0194654]
[1647040866006,0.39736478,2564.4,2564.3,1.27270257]
[1647040866206,0.39736478,2564.4,2564.3,0.0180918]
[1647040866409,0.39736478,2564.4,2564.3,1.27272627]
[1647040866607,0.39736478,2564.4,2564.3,0.0180918]
[1647040867313,0.39736478,2564.4,2564.3,1.27281999]
[1647040867557,0.39736478,2564.4,2564.3,0.0180918]
[1647040867759,0.39736478,2564.4,2564.3,1.27280507]
[1647040867959,0.39736478,2564.4,2564.3,0.0180918]
[1647040868158,0.39736478,2564.4,2564.3,1.27304974]
[1647040868358,0.39736478,2564.4,2564.3,0.0180918]
[1647040868558,0.39736478,2564.4,2564.3,1.27301678]
[1647040868759,0.39768335,2564.4,2564.3,1.27301678]
[1647040869163,0.39768335,2564.4,2564.3,1.2733741]
[1647040869360,0.39768335,2564.4,2564.3,0.0180918]
[1647040869560,0.39768335,2564.4,2564.3,1.27336988]
[1647040869762,0.39768335,2564.4,2564.3,0.0180918]
[1647040869964,0.39768335,2564.4,2564.3,1.27337608]
[1647040870162,0.39768335,2564.4,2564.3,0.0180918]
[1647040870363,0.39768335,2564.4,2564.3,1.27338559]
[1647040870561,0.39768335,2564.4,2564.3,1.27331737]
[1647040870762,0.39768335,2564.4,2564.3,1.27332641]
[1647040870962,0.39768335,2564.4,2564.3,0.0180918]
[1647040871210,0.39768335,2564.4,2564.3,1.27327029]
[1647040871404,0.39768335,2564.4,2564.3,0.0180918]
[1647040871607,0.39768335,2564.4,2564.3,1.27319575]
[1647040871805,0.39768335,2564.4,2564.3,0.0180918]
[1647040872005,0.39768335,2564.4,2564.3,1.27317419]
[1647040872206,0.39768335,2564.4,2564.3,0.0180918]
[1647040872810,0.39768335,2564.4,2564.3,1.27315041]
[1647040873010,0.39768335,2564.4,2564.3,1.27312011]
[1647040873210,0.39768335,2564.4,2564.3,0.0180918]
[1647040873412,0.39768335,2564.4,2564.3,1.2731178]
[1647040873614,0.52044751,2564.1,2564.0,0.98177446]
[1647040873813,0.85620716,2564.1,2564.0,2.23714246]
[1647040875268,0.85620716,2564.1,2564.0,1.255368]
[1647040890760,0.90717376,2564.1,2564.0,1.255368]
[1647040893714,0.90717376,2564.1,2564.0,1.25441096]
[1647040893906,0.85620716,2564.1,2563.9,1.51427444]
[1647040894105,0.38686162,2564.0,2563.9,1.51427444]
[1647040894504,0.38686162,2564.0,2563.9,2.76868241]
[1647040894709,0.38686162,2564.0,2563.9,1.51011901]
[1647040894908,0.38686162,2564.0,2563.9,2.76450849]
[1647040895106,0.38686162,2564.0,2563.9,1.51011901]
[1647040895507,0.38686162,2564.0,2563.9,2.7644043]
[1647040895707,0.38686162,2564.0,2563.9,2.76440012]
[1647040895908,0.38686162,2564.0,2563.9,1.51011901]
[1647040896109,0.38686162,2564.0,2563.9,2.7634378]
[1647040896308,0.38686162,2564.0,2563.9,1.50912996]
[1647040896508,0.38686162,2564.0,2563.9,2.76331771]
[1647040896708,0.38686162,2564.0,2563.9,1.50912996]
[1647040896909,0.38686162,2564.0,2563.9,2.76339657]
[1647040897108,0.38686162,2564.0,2563.9,1.50912996]
[1647040897310,0.38686162,2564.0,2563.9,2.7633974]
[1647040897566,0.38686162,2564.0,2563.9,2.76321736]
[1647040897763,0.38686162,2564.0,2563.9,1.50912996]
[1647040897968,0.38686162,2564.0,2563.9,2.76330546]
[1647040898167,0.38686162,2564.0,2563.9,1.50912996]
[1647040898364,0.38686162,2564.0,2563.9,0.8437979]
[1647040898766,0.38686162,2564.0,2563.9,0.7937979]
[1647040899966,1.09591209,2564.0,2563.9,0.7937979]
[1647040900170,1.5,2563.9,2563.8,0.02386655]
[1647040900367,2.76692903,2563.9,2563.8,0.02386655]
[1647040900766,2.76692903,2563.9,2563.8,0.0199098]
[1647040901609,2.00803008,2563.8,2563.6,0.0094523]
[1647040901810,0.39887091,2563.7,2563.4,0.0054011]
[1647040902010,0.33495219,2563.6,2563.5,1.26557355]
[1647040903218,0.05276258,2563.5,2563.4,0.0054011]
[1647040903414,0.38771477,2563.5,2563.4,0.00935845]
[1647040903613,0.38771477,2563.5,2563.4,0.05142178]
[1647040904219,0.38771477,2563.5,2563.4,0.04746443]
[1647040907665,0.38771477,2563.5,2563.4,0.04206333]
[1647040907862,0.38771477,2563.5,2563.4,0.04746443]
[1647040915058,0.38622635,2563.5,2563.4,0.04746443]
[1647040918319,1.5,2563.4,2563.1,0.21016465]
[1647040918517,0.05675153,2563.2,2563.1,0.21016465]
[1647040918715,0.39170372,2563.2,2563.1,0.21016465]
[1647040920357,0.05207298,2563.0,2562.6,0.0487834]
[1647040920556,0.05207298,2563.0,2562.7,1.01406853]
[1647040921357,0.05207298,2563.0,2562.7,1.01860974]
[1647040921563,0.05207298,2563.0,2562.7,0.00454121]
[1647040922161,1.02779298,2563.0,2562.7,0.00454121]
[1647040922360,1.02779298,2563.0,2562.6,0.0487834]
[1647040922561,1.02779298,2563.0,2562.7,0.00454121]
[1647040923362,0.06426618,2562.9,2562.7,0.00454121]
[1647040923563,0.0659418,2562.8,2562.6,0.0487834]
[1647040923812,0.0659418,2562.8,2562.7,0.00454121]
[1647040924707,0.0659418,2562.8,2562.6,0.0487834]
[1647040924908,0.0659418,2562.8,2562.6,0.05332467]
[1647040925910,0.0659418,2562.8,2562.6,0.0487834]
[1647040926314,0.0659418,2562.8,2562.6,0.05279737]
[1647040927116,0.0659418,2562.8,2562.6,0.0487834]
[1647040927458,0.0659418,2562.8,2562.6,0.05279737]
[1647040928265,0.0659418,2562.8,2562.6,0.0487834]
[1647040928464,0.0659418,2562.8,2562.6,0.05279737]
[1647040929466,0.0659418,2562.8,2562.6,0.0487834]
[1647040929668,0.0659418,2562.8,2562.6,0.05288469]
[1647040929867,0.9759,2562.8,2562.6,0.05288469]
[1647040930067,3.55298635,2562.7,2562.6,0.05288469]
[1647040930769,3.55298635,2562.7,2562.6,0.0487834]
[1647040933323,0.05298635,2562.7,2562.6,0.0487834]
[1647040938267,0.05298635,2562.7,2562.6,0.01510962]
[1647040940713,0.37582265,2562.7,2562.6,0.01510962]
[1647040944267,1.35179265,2562.7,2562.6,0.01510962]
[1647040944666,0.976,2562.6,2562.5,0.00225409]
[1647040944970,1.2988363,2562.6,2562.5,0.00225409]
[1647040945165,2.2748263,2562.6,2562.4,0.0645934]
[1647040945366,0.3228363,2562.5,2562.4,0.0645934]
[1647040945866,0.3228363,2562.5,2562.4,1.32756515]
[1647040947019,0.3228363,2562.5,2562.4,0.0645934]
[1647040947219,0.3228363,2562.5,2562.4,1.32781853]
[1647040950767,0.97596,2562.8,2562.4,1.40546036]
[1647040950967,0.97557,2562.9,2562.5,1.32928345]
[1647040951168,0.32326697,2562.8,2562.6,1.33865914]
[1647040951378,0.32326697,2562.8,2562.7,1.32383283]
[1647040951568,0.90405047,2563.5,2562.7,5.66277686]
[1647040951768,0.32329259,2563.4,2562.8,5.80793828]
[1647040951970,0.32329259,2563.4,2562.9,1.26322513]
[1647040952167,1.29872259,2563.3,2562.8,0.06925905]
[1647040952369,0.97543,2563.3,2562.8,0.06925905]
[1647040952570,0.97543,2563.3,2562.8,0.01925905]
[1647040953173,0.97543,2563.3,2562.9,0.9754124]
[1647040953372,0.97543,2563.3,2562.9,1.9508724]
[1647040953815,0.97543,2563.3,2562.9,1.9008724]
[1647040954015,0.97543,2563.3,2562.9,2.8763324]
[1647040954217,0.97543,2563.3,2562.9,2.8263324]
[1647040954618,0.97543,2563.3,2562.9,2.7763324]
[1647040955019,0.97543,2563.3,2562.9,2.7263324]
[1647040958374,0.0617471,2563.2,2562.9,2.7263324]
[1647040958574,1.0372371,2563.2,2562.9,2.7263324]
[1647040959781,1.0372371,2563.2,2562.7,2.94589165]
[1647040959975,1.0372371,2563.2,2562.7,2.75089165]
[1647040960176,1.0372371,2563.2,2562.7,6.25089165]
[1647040961076,1.0372371,2563.2,2562.7,2.75089165]
[1647040961813,0.07021887,2563.1,2562.7,2.75089165]
[1647040964322,0.07021887,2563.1,2562.7,2.9263583]
[1647040964519,0.07021887,2563.1,2562.6,1.2429]
[1647040964520,1.95129,2563.0,2562.6,1.2429]
[1647040964719,1.95129,2563.0,2562.5,0.00395558]
[1647040964720,0.06448877,2562.9,2562.5,0.00395558]
[1647040964967,1.04015877,2562.9,2562.5,0.00395558]
[1647040965365,2.06240051,2562.9,2562.5,0.00395558]
[1647040965564,0.07312644,2562.8,2562.5,0.00395558]
[1647040965766,0.07312644,2562.8,2562.4,0.0645934]
[1647040965967,0.07312644,2562.8,2562.5,0.00395558]
[1647040966772,0.07312644,2562.8,2562.4,0.0645934]
[1647040966773,1.04886644,2562.8,2562.4,0.0645934]
[1647040966969,0.0719103,2562.7,2562.4,0.0645934]
[1647040967168,0.0719103,2562.7,2562.5,0.0040559]
[1647040968176,0.0719103,2562.7,2562.4,0.0645934]
[1647040968474,0.0719103,2562.7,2562.5,0.00405593]
[1647040969612,1.3819,2563.2,2562.5,0.97957813]
[1647040969613,3.13803,2563.2,2562.5,0.97957813]
[1647040969814,3.13803,2563.2,2562.6,3.5]
[1647040969815,0.0776554,2563.1,2562.6,3.5]
[1647040970013,0.0776554,2563.1,2562.6,0.71141724]
[1647040970915,0.0776554,2563.1,2563.0,1.08448629]
[1647040971113,0.0776554,2563.1,2563.0,2.05992629]
[1647040971316,0.0776554,2563.1,2562.9,0.9754301]
[1647040972213,0.0776554,2563.1,2563.0,1.28420897]
[1647040979022,0.0776554,2563.1,2562.8,1.28420897]
[1647040980468,0.0776554,2563.1,2562.9,1.00379137]
[1647040980670,0.0776554,2563.1,2563.0,1.28420897]
[1647040981772,0.0776554,2563.1,2562.8,1.28420897]
[1647040981971,0.0776554,2563.1,2562.9,1.28420897]
[1647040982171,0.0776554,2563.1,2563.0,1.28420897]
[1647040982673,0.0776554,2563.1,2562.8,1.28420897]
[1647040984115,1.95117,2563.0,2562.8,1.28420897]
[1647040984314,0.0619971,2562.9,2562.8,1.28420897]
[1647040984716,0.31017801,2563.0,2562.8,1.28420897]
[1647040985118,0.31017801,2563.0,2562.8,1.23420897]
[1647040986819,0.97554,2563.0,2562.8,1.23420897]
[1647040989472,0.97543,2563.2,2562.9,3.5]
[1647040989675,0.05375845,2563.6,2562.9,4.21141724]
[1647040989875,7.31113538,2564.1,2562.9,4.21141724]
[1647040989876,0.06337352,2564.0,2562.9,1.71141724]
[1647040990076,0.06337352,2564.0,2563.0,0.71141724]
[1647040990274,0.06337352,2564.0,2563.1,0.06494194]
[1647040990674,0.06337352,2564.0,2563.7,0.8691633]
[1647040990874,0.97527,2563.9,2563.7,0.8691633]
[1647040991078,0.06337352,2564.0,2563.7,0.8691633]
[1647040991079,0.06337352,2564.0,2563.7,1.1691633]
[1647040991321,0.52438973,2564.1,2563.7,1.23504074]
[1647040991720,0.52438973,2564.1,2563.7,1.70604074]
[1647040992126,0.52044751,2564.1,2563.7,1.70604074]
[1647040992323,0.52044751,2564.1,2563.8,1.94993]
[1647040992523,0.5243936,2564.1,2563.9,0.97497]
[1647040993128,0.5243936,2564.1,2563.9,1.27497]
[1647040993524,0.52044751,2564.1,2563.9,2.2499313]
[1647040993730,0.52440341,2564.1,2563.9,2.2499313]
[1647040994724,0.52044751,2564.1,2563.9,2.2499313]
[1647040994975,0.05767352,2564.6,2564.0,1.5]
[1647040995175,2.25075047,2565.5,2564.3,1.68838003]
[1647040995176,1.3477,2565.4,2564.3,1.68838003]
[1647040995374,0.05260988,2565.3,2564.4,0.54781248]
[1647040995775,0.05260988,2565.3,2564.5,0.06407232]
[1647040995974,1.11618506,2565.3,2564.7,0.87184732]
[1647040996278,0.06205263,2565.1,2564.5,1.94925]
[1647040996675,0.06205263,2565.1,2564.4,3.8983597]
[1647040997074,2.01179263,2565.1,2564.4,3.8983597]
[1647040997274,0.92511405,2564.8,2564.4,3.8983597]
[1647040997474,0.97494,2564.7,2564.4,3.8983597]
[1647040998377,0.97494,2564.7,2564.5,1.9497022]
[1647040998378,0.00274683,2564.7,2564.5,1.9497022]
[1647040999220,0.00274683,2564.7,2564.6,0.91332674]
[1647040999420,0.06291658,2564.8,2564.7,0.97482]
[1647041000522,0.06291658,2564.8,2564.6,1.9496783]
[1647041002120,0.06717941,2564.8,2564.6,1.9496783]
[1647041002971,0.06291658,2564.8,2564.6,1.9496783]
[1647041003170,0.06717941,2564.8,2564.6,1.9496783]
[1647041004170,0.06291658,2564.8,2564.6,1.9496783]
[1647041004369,0.0669823,2564.8,2564.6,1.9496783]
[1647041004770,1.12572958,2564.9,2564.8,0.03932648]
[1647041004970,0.97482,2565.0,2564.8,0.03932648]
[1647041006622,0.97479,2565.1,2564.8,0.03932648]
[1647041007319,0.97479,2565.1,2564.8,1.01411648]
[1647041007722,0.97479,2565.1,2564.8,1.98889778]
[1647041008123,0.97932984,2565.1,2564.8,1.01411648]
[1647041008522,0.97932984,2565.1,2565.0,1.13802403]
[1647041008724,0.00453984,2565.1,2565.0,1.13802403]
[1647041009228,1.02010498,2565.2,2565.0,1.13802403]
[1647041009522,1.02464476,2565.2,2565.0,1.13802403]
[1647041009967,1.02464476,2565.2,2564.9,1.94949]